fUSD/lending_fUSD_20260226
["ID","MTS","AMOUNT","RATE_DAILY","PERIOD"]
[406724266,1772121055503,-200.0,0.0001799,2]
[406724268,1772121055512,-600.0,0.0001799,2]
[406724270,1772121055521,-1070.62307231,0.0001799,2]
[406724272,1772121055530,-187.29970089,0.0001799,2]
[406724274,1772121055540,-156.66979557,0.0001799,2]
[406724276,1772121055550,-339.21457322,0.0001799,2]
[406724278,1772121055559,-150.0,0.0001799,2]
[406724280,1772121055568,-5800.0,0.0001799,2]
[406724282,1772121055576,-150.0,0.00017991,2]
[406724284,1772121055586,-502.0,0.00017991,4]
[406724286,1772121055595,-187.29970089,0.00017992,2]
[406724288,1772121055605,-156.66979557,0.00017992,2]
[406724290,1772121055615,-150.0,0.00017992,2]
[406724292,1772121055624,-339.21457322,0.00017992,2]
[406724294,1772121055634,-150.0,0.00017992,2]
[406724296,1772121055643,-150.0,0.00017992,2]
[406724298,1772121055653,-150.0,0.00017992,2]
[406724300,1772121055662,-187.29970089,0.00017993,2]
[406724302,1772121055672,-156.66979557,0.00017993,2]
[406724304,1772121055681,-339.21457322,0.00017993,2]
[406724306,1772121055690,-150.0,0.00017993,2]
[406724308,1772121055699,-150.0,0.00017994,2]
[406724310,1772121055708,-150.0,0.00017994,2]
[406724312,1772121055717,-150.0,0.00017994,2]
[406724314,1772121055727,-150.0,0.00017994,2]
[406724316,1772121055736,-150.0,0.00017994,2]
[406724318,1772121055745,-187.29970089,0.00017994,2]
[406724320,1772121055755,-156.66979557,0.00017994,2]
[406724322,1772121055764,-339.21457322,0.00017994,2]
[406724324,1772121055774,-150.0,0.00017995,2]
[406724326,1772121055783,-150.0,0.00017995,2]
[406724328,1772121055793,-187.29970089,0.00017996,2]
[406724330,1772121055803,-156.66979557,0.00017996,2]
[406724332,1772121055812,-150.0,0.00017996,2]
[406724334,1772121055822,-339.21457322,0.00017996,2]
[406724336,1772121055831,-150.0,0.00017996,2]
[406724338,1772121055840,-150.0,0.00017996,2]
[406724340,1772121055849,-150.0,0.00017997,2]
[406724342,1772121055859,-150.0,0.00017997,2]
[406724344,1772121055869,-500.0,0.00017997,2]
[406724346,1772121055882,-500.0,0.00017997,2]
[406724348,1772121055892,-500.0,0.00017997,2]
[406724351,1772121055901,-500.0,0.00017997,2]
[406724353,1772121055910,-500.0,0.00017997,2]
[406724354,1772121055921,-500.0,0.00017997,2]
[406724356,1772121055930,-500.0,0.00017997,2]
[406724358,1772121055939,-500.0,0.00017997,2]
[406724360,1772121055950,-585.34193538,0.00017997,2]
[406724362,1772121055959,-500.0,0.00017997,13]
[406724364,1772121055968,-500.0,0.00017997,14]
[406724366,1772121055977,-500.0,0.00017997,15]
[406724368,1772121055986,-500.0,0.00017997,16]
[406724370,1772121055995,-500.0,0.00017997,2]
[406724372,1772121056005,-500.0,0.00017997,2]
[406724374,1772121056014,-500.0,0.00017997,2]
[406724376,1772121056023,-500.0,0.00017997,2]
[406724378,1772121056033,-500.0,0.00017997,2]
[406724380,1772121056042,-384.80531288,0.00017997,2]
[406724382,1772121056052,-151.0,0.00017997,2]
[406724384,1772121056062,-187.29970089,0.00017997,2]
[406724386,1772121056072,-156.66979557,0.00017997,2]
[406724388,1772121056081,-339.21457322,0.00017997,2]
[406724391,1772121056091,-150.0,0.00017998,2]
[406724392,1772121056100,-150.0,0.00017998,2]
[406724394,1772121056109,-150.0,0.00017998,2]
[406724396,1772121056118,-187.29970089,0.00017999,2]
[406724399,1772121056128,-156.66979557,0.00017999,2]
[406724401,1772121056138,-339.21457322,0.00017999,2]
[406724403,1772121056147,-300.0,0.00017999,2]
[406724404,1772121056156,-666.0,0.00017999,2]
[406724407,1772121056167,-500.0,0.00017999,2]
[406724409,1772121056176,-391.644255,0.00017999,2]
[406724411,1772121056185,-5800.0,0.00017999,2]
[406724412,1772121056194,-150.0,0.00017999,2]
[406724415,1772121056204,-155.07011647,0.00017999,2]
[406724417,1772121056213,-3796014.34835658,0.00018,2]
[406724449,1772121056702,-294.49398959,0.00011021,2]
[406724451,1772121056712,-209.25601041,0.00011475,2]
[406724454,1772121056732,-1567.37851663,0.00011475,2]
[406724457,1772121056745,-251.975,0.00011475,2]
[406724459,1772121056756,-352.27275,0.00011475,2]
[406724461,1772121056768,-2191.11772296,0.00011475,2]
[406724463,1772121056778,-1004.88227704,0.00014475,2]
[406724466,1772121056799,-408.18154815,0.00014475,2]
[406724570,1772121813366,439.67,5e-05,2]
[406724598,1772122231580,-676.04,6.591e-05,2]
[406724600,1772122231591,-151.0,6.623e-05,2]
[406724603,1772122231601,-150.0,6.624e-05,2]
[406724605,1772122231611,-300.0,6.624e-05,2]
[406724606,1772122231620,-663.0,6.624e-05,2]
[406724608,1772122231630,-106.69597902,6.625e-05,2]
[406724609,1772122231641,-393.30402098,6.625e-05,2]
[406724610,1772122231651,-211.44916814,6.625e-05,2]
[406724611,1772122231660,-7.60064644,6.625e-05,2]
[406724612,1772122231676,-314.35317089,6.625e-05,2]
[406724613,1772122231686,-191.50497652,6.625e-05,2]
[406724614,1772122231698,-308.49502348,6.625e-05,2]
[406724615,1772122231708,-153.61563365,6.625e-05,2]
[406724616,1772122231736,-346.38436635,6.625e-05,2]
[406724617,1772122231745,-500.0,6.625e-05,2]
[406724618,1772122231755,-511.58282486,6.625e-05,2]
[406724619,1772122231764,-500.0,6.625e-05,2]
[406724620,1772122231774,-160.46453532,6.625e-05,2]
[406724621,1772122231784,-325.09882756,6.625e-05,2]
[406724622,1772122231793,-500.0,6.625e-05,2]
[406724623,1772122231802,-500.0,6.625e-05,2]
[406724624,1772122231812,-500.0,6.625e-05,2]
[406724625,1772122231821,-500.0,6.625e-05,2]
[406724626,1772122231831,-500.0,6.625e-05,2]
[406724627,1772122231841,-500.0,6.625e-05,2]
[406724628,1772122231850,-500.0,6.625e-05,2]
[406724629,1772122231860,-500.0,6.625e-05,2]
[406724630,1772122231869,-500.0,6.625e-05,2]
[406724631,1772122231878,-500.0,6.625e-05,2]
[406724632,1772122231888,-500.0,6.625e-05,2]
[406724633,1772122231899,-500.0,6.625e-05,2]
[406724634,1772122231909,-261.79740385,6.625e-05,2]
[406724635,1772122231919,-500.0,6.625e-05,2]
[406724636,1772122231928,-500.0,6.625e-05,2]
[406724637,1772122231938,-500.0,6.625e-05,2]
[406724638,1772122231948,-500.0,6.625e-05,2]
[406724639,1772122231958,-500.0,6.625e-05,2]
[406724640,1772122231969,-500.0,6.625e-05,2]
[406724641,1772122231979,-245221.56814001,6.626e-05,2]
[406724642,1772122231993,-62721.72558226,6.626e-05,2]
[406724675,1772122240191,-33690.96497514,6.626e-05,2]
[406724676,1772122240212,-1658365.74130259,6.626e-05,2]
[406724677,1772122240235,-300.0,6.652e-05,2]
[406724678,1772122240252,-300.0,6.695e-05,2]
[406724679,1772122240269,-300.0,6.695e-05,2]
[406724680,1772122240288,-300.0,6.695e-05,2]
[406724681,1772122240307,-1502.82666669,6.725e-05,2]
[406724682,1772122240324,-159.92,6.8e-05,2]
[406724683,1772122240338,-1000.0,6.8e-05,2]
[406724686,1772122240355,-2100.0,6.9e-05,2]
[406724687,1772122240369,-3200.0,7e-05,2]
[406724688,1772122240381,-250.0,7.25e-05,2]
[406724689,1772122240397,-300.0,7.25e-05,2]
[406724690,1772122240410,-315.20669997,7.25e-05,2]
[406724691,1772122240427,-200.0,7.99e-05,2]
[406724692,1772122240442,-707.0,8.201e-05,2]
[406724693,1772122240456,-704.0,8.218e-05,2]
[406724694,1772122240473,-500.0,8.219e-05,2]
[406724695,1772122240487,-615.19081241,8.219e-05,2]
[406724697,1772122240502,-500.0,8.219e-05,2]
[406724699,1772122240517,-500.0,8.219e-05,2]
[406724700,1772122240531,-500.0,8.219e-05,2]
[406724701,1772122240544,-500.0,8.219e-05,2]
[406724702,1772122240559,-500.0,8.219e-05,2]
[406724703,1772122240573,-500.0,8.219e-05,2]
[406724704,1772122240588,-500.0,8.219e-05,2]
[406724705,1772122240601,-480.63356869,8.219e-05,2]
[406724706,1772122240615,-500.0,8.219e-05,2]
[406724707,1772122240629,-500.0,8.219e-05,2]
[406724708,1772122240643,-162.43895648,8.219e-05,2]
[406724709,1772122240658,-150.0,8.219e-05,2]
[406724710,1772122240673,-150.0,8.219e-05,2]
[406724711,1772122240687,-277.271877,8.219e-05,2]
[406724712,1772122240701,-500.0,8.219e-05,2]
[406724713,1772122240716,-365.57,8.219e-05,2]
[406724714,1772122240731,-1175.0,8.234e-05,2]
[406724715,1772122240744,-843.0,8.25e-05,2]
[406724716,1772122240758,-411.0,8.267e-05,2]
[406724717,1772122240772,-150.0,8.274e-05,2]
[406724718,1772122240787,-365.57,8.676e-05,2]
[406724719,1772122240801,-1282.0,8.882e-05,2]
[406724720,1772122240815,-1553.0,8.899e-05,2]
[406724721,1772122240830,-842.0,8.917e-05,2]
[406724722,1772122240843,-1009.0,8.935e-05,2]
[406724723,1772122240857,-2331.03,8.951e-05,2]
[406724724,1772122240870,-9773.11,9.038e-05,2]
[406724725,1772122240884,-365.57,9.132e-05,2]
[406724726,1772122240898,-365.57,9.589e-05,2]
[406724727,1772122240912,-772.91,9.674e-05,2]
[406724728,1772122240925,-150.0,9.726e-05,2]
[406724729,1772122240939,-69461.8304039,9.781e-05,7]
[406724730,1772122240952,-205.0,9.8e-05,2]
[406724731,1772122240966,-31110.78105374,9.95e-05,2]
[406724732,1772122240981,-151.0,0.0001,2]
[406724733,1772122240995,-151.0,0.0001,2]
[406724734,1772122241009,-151.0,0.0001,2]
[406724735,1772122241023,-151.0,0.0001,2]
[406724736,1772122241037,-151.0,0.0001,2]
[406724737,1772122241051,-151.0,0.0001,2]
[406724738,1772122241065,-151.0,0.0001,2]
[406724739,1772122241078,-151.0,0.0001,2]
[406724740,1772122241094,-151.0,0.0001,2]
[406724741,1772122241108,-151.0,0.0001,2]
[406724742,1772122241118,-151.0,0.0001,2]
[406724743,1772122241128,-151.0,0.0001,2]
[406724744,1772122241137,-151.0,0.0001,2]
[406724745,1772122241350,-151.0,0.0001,2]
[406724746,1772122241369,-151.0,0.0001,2]
[406724747,1772122241379,-151.0,0.0001,2]
[406724748,1772122241389,-151.0,0.0001,2]
[406724749,1772122241399,-151.0,0.0001,2]
[406724750,1772122241408,-151.0,0.0001,2]
[406724751,1772122241418,-151.0,0.0001,2]
[406724752,1772122241427,-151.0,0.0001,2]
[406724753,1772122241437,-151.0,0.0001,2]
[406724754,1772122241446,-151.0,0.0001,2]
[406724755,1772122241455,-151.0,0.0001,2]
[406724756,1772122241465,-151.0,0.0001,2]
[406724757,1772122241475,-151.0,0.0001,2]
[406724758,1772122241485,-151.0,0.0001,2]
[406724759,1772122241495,-151.0,0.0001,2]
[406724760,1772122241504,-151.0,0.0001,2]
[406724761,1772122241514,-151.0,0.0001,2]
[406724762,1772122241524,-151.0,0.0001,2]
[406724763,1772122241534,-151.0,0.0001,2]
[406724764,1772122241543,-151.0,0.0001,2]
[406724765,1772122241553,-151.0,0.0001,2]
[406724766,1772122241563,-151.0,0.0001,2]
[406724767,1772122241574,-151.0,0.0001,2]
[406724768,1772122241584,-151.0,0.0001,2]
[406724769,1772122241594,-151.0,0.0001,2]
[406724770,1772122241603,-151.0,0.0001,2]
[406724771,1772122241613,-1186.11241235,0.0001,2]
[406724772,1772122241622,-151.0,0.0001,2]
[406724773,1772122241631,-286.03470972,0.0001,2]
[406724774,1772122241641,-1000.0,0.0001,2]
[406724775,1772122241650,-1070.62307231,0.0001,2]
[406724776,1772122241660,-365.57,0.00010046,2]
[406724777,1772122241669,-163.58,0.00010145,2]
[406724778,1772122241679,-500.0,0.000103,2]
[406724779,1772122241688,-500.0,0.000103,2]
[406724780,1772122241698,-500.0,0.000103,2]
[406724781,1772122241707,-500.0,0.000103,2]
[406724782,1772122241717,-500.0,0.000103,2]
[406724783,1772122241728,-500.0,0.000103,2]
[406724784,1772122241737,-500.0,0.000103,2]
[406724785,1772122241747,-500.0,0.000103,2]
[406724786,1772122241757,-500.0,0.000103,2]
[406724787,1772122241766,-500.0,0.000103,2]
[406724788,1772122241776,-500.0,0.000103,2]
[406724789,1772122241785,-500.0,0.000103,2]
[406724790,1772122241795,-500.0,0.000103,2]
[406724791,1772122241804,-500.0,0.000103,2]
[406724792,1772122241813,-500.0,0.000103,2]
[406724793,1772122241823,-500.0,0.000103,2]
[406724794,1772122241831,-500.0,0.000103,2]
[406724795,1772122241841,-500.0,0.000103,2]
[406724796,1772122241850,-615.83999229,0.000103,2]
[406724797,1772122241859,-500.0,0.000103,2]
[406724798,1772122241868,-500.0,0.000103,2]
[406724799,1772122241878,-500.0,0.000103,2]
[406724800,1772122241887,-500.0,0.000103,2]
[406724801,1772122241896,-500.0,0.000103,2]
[406724802,1772122241905,-500.0,0.000103,2]
[406724803,1772122241915,-500.0,0.000103,2]
[406724804,1772122241924,-500.0,0.000103,2]
[406724805,1772122241933,-500.0,0.000103,2]
[406724806,1772122241943,-500.0,0.000103,2]
[406724807,1772122241952,-500.0,0.000103,2]
[406724808,1772122241961,-500.0,0.000103,2]
[406724809,1772122241971,-700.0,0.000103,2]
[406724810,1772122241983,-500.0,0.000103,2]
[406724811,1772122241993,-500.0,0.000103,2]
[406724812,1772122242002,-500.0,0.000103,2]
[406724813,1772122242011,-500.0,0.000103,2]
[406724814,1772122242020,-500.0,0.000103,2]
[406724815,1772122242029,-500.0,0.000103,2]
[406724816,1772122242038,-500.0,0.000103,2]
[406724817,1772122242048,-500.0,0.000103,2]
[406724818,1772122242057,-500.0,0.000103,2]
[406724819,1772122242067,-500.0,0.000103,2]
[406724820,1772122242077,-500.0,0.000103,2]
[406724821,1772122242086,-500.0,0.000103,2]
[406724822,1772122242096,-500.0,0.000103,2]
[406724823,1772122242106,-500.0,0.000103,2]
[406724824,1772122242116,-500.0,0.000103,2]
[406724825,1772122242126,-500.0,0.000103,2]
[406724826,1772122242136,-700.0,0.000103,2]
[406724827,1772122242147,-500.0,0.000103,2]
[406724828,1772122242157,-500.0,0.000103,2]
[406724829,1772122242167,-500.0,0.000103,2]
[406724830,1772122242177,-500.0,0.000103,2]
[406724831,1772122242187,-500.0,0.000103,2]
[406724832,1772122242198,-500.0,0.000103,2]
[406724833,1772122242211,-365.57,0.00010502,2]
[406724834,1772122242220,-28385.0,0.000107,2]
[406724835,1772122242232,-502.2030619,0.00010829,2]
[406724836,1772122242242,-501.35484447,0.00010829,2]
[406724837,1772122242254,-500.53906536,0.00010829,2]
[406724838,1772122242265,-158.6599059,0.00010829,2]
[406724839,1772122242274,-503.76454866,0.00010829,2]
[406724840,1772122242283,-500.28462042,0.00010829,2]
[406724841,1772122242293,-500.0,0.00010829,2]
[406724842,1772122242302,-500.0,0.00010829,2]
[406724843,1772122242313,-500.72325527,0.00010829,2]
[406724844,1772122242323,-500.0,0.00010829,2]
[406724845,1772122242332,-500.0,0.00010829,2]
[406724846,1772122242341,-500.0,0.00010829,2]
[406724847,1772122242351,-500.0,0.00010829,2]
[406724848,1772122242361,-4991.64015432,0.000109,2]
[406724849,1772122242370,-4991.64015429,0.000109,2]
[406724850,1772122242382,-4991.64015429,0.000109,2]
[406724851,1772122242393,-15447.06,0.00010959,2]
[406724852,1772122242403,-365.57,0.00010959,2]
[406724853,1772122242412,-2903.08,0.00010967,2]
[406724854,1772122242422,-10421.13098492,0.00011099,2]
[406724855,1772122242432,-10421.13098485,0.00011099,2]
[406724856,1772122242441,-10421.13098485,0.00011099,2]
[406724857,1772122242450,-10421.13098485,0.00011099,2]
[406724858,1772122242460,-5531.0,0.000111,3]
[406724859,1772122242469,-920.0,0.00011201,2]
[406724860,1772122242482,-1211.0,0.00011201,2]
[406724861,1772122242492,-2456.0,0.00011201,2]
[406724862,1772122242501,-5983.0,0.00011201,2]
[406724863,1772122242511,-413.0,0.00011201,2]
[406724864,1772122242520,-1000.0,0.00011377,2]
[406724865,1772122242529,-1000.0,0.00011377,2]
[406724866,1772122242539,-513.39301398,0.00011377,2]
[406724869,1772122242549,-1000.0,0.00011377,2]
[406724870,1772122242560,-1000.0,0.00011377,2]
[406724871,1772122242570,-4991.64015429,0.00011415,2]
[406724872,1772122242580,-365.57,0.00011416,2]
[406724873,1772122242589,-150.0,0.00011475,2]
[406724874,1772122242598,-215.0,0.00011475,2]
[406724875,1772122242608,-150.061,0.00011475,2]
[406724877,1772122242617,-150.0,0.00011475,2]
[406724879,1772122242627,-150.05,0.00011475,2]
[406724881,1772122242636,-150.034,0.00011475,2]
[406724884,1772122242646,-150.0,0.00011475,2]
[406724886,1772122242655,-150.0,0.00011475,2]
[406724887,1772122242672,-150.203,0.00011475,2]
[406724888,1772122242681,-150.0,0.00011475,2]
[406724889,1772122242690,-3498.0,0.00011475,2]
[406724890,1772122242700,-1041.0,0.00011475,2]
[406724891,1772122242709,-1340.0,0.00011475,2]
[406724892,1772122242719,-618.0,0.00011475,2]
[406724893,1772122242729,-1277.0,0.00011475,2]
[406724894,1772122242739,-5531.0,0.000115,5]
[406724895,1772122242748,-10421.13098485,0.00011629,2]
[406724896,1772122242758,-2919.924799,0.00011712,2]
[406724897,1772122242768,-365.57,0.00011872,2]
[406724898,1772122242778,-1008.26998517,0.00011924,2]
[406724899,1772122242788,-1500.0,0.00011924,2]
[406724900,1772122242799,-501.85175183,0.00011924,2]
[406724901,1772122242809,-200.09788063,0.00011924,2]
[406724902,1772122242818,-9999.99,0.00012087,2]
[406724903,1772122242828,-381.71,0.00012087,2]
[406724904,1772122242838,-299.99,0.00012087,2]
[406724905,1772122242847,-150.99,0.00012087,2]
[406724906,1772122242856,-9999.99,0.00012087,2]
[406724907,1772122242867,-286.0347097,0.00012226,2]
[406724908,1772122242877,-173.95657067,0.00012274,2]
[406724909,1772122242886,-160.0,0.00012274,2]
[406724910,1772122242895,-365.57,0.00012329,2]
[406724911,1772122242904,-2000.0,0.00012472,2]
[406724912,1772122242913,-1500.0,0.00012661,2]
[406724913,1772122242922,-154.962119,0.00012681,2]
[406724914,1772122242931,-473.863269,0.00012681,2]
[406724915,1772122242940,-10421.13098485,0.00012861,2]
[406724916,1772122242950,-151.0,0.00012887,2]
[406724917,1772122242959,-504.90043007,0.0001289,2]
[406724918,1772122242968,-500.0,0.0001289,2]
[406724919,1772122242978,-500.0,0.0001289,2]
[406724920,1772122242987,-500.0,0.0001289,2]
[406724921,1772122242996,-226.12454466,0.0001289,2]
[406724922,1772122243005,-500.0,0.0001289,2]
[406724923,1772122243014,-626.24566997,0.0001289,2]
[406724924,1772122243023,-500.76827377,0.0001289,2]
[406724925,1772122243033,-500.0,0.0001289,2]
[406724926,1772122243042,-500.0,0.0001289,2]
[406724927,1772122243052,-500.0,0.0001289,2]
[406724928,1772122243062,-500.0,0.0001289,2]
[406724929,1772122243071,-500.0,0.0001289,2]
[406724930,1772122243080,-173.7910009,0.0001289,2]
[406724931,1772122243090,-500.0,0.0001289,2]
[406724932,1772122243099,-500.0,0.0001289,2]
[406724933,1772122243109,-500.0,0.0001289,2]
[406724934,1772122243118,-500.0,0.0001289,2]
[406724935,1772122243129,-500.0,0.0001289,2]
[406724936,1772122243139,-500.0,0.0001289,2]
[406724937,1772122243149,-500.0,0.0001289,2]
[406724938,1772122243159,-500.0,0.0001289,2]
[406724939,1772122243168,-500.0,0.0001289,2]
[406724940,1772122243177,-500.0,0.0001289,2]
[406724941,1772122243187,-500.0,0.0001289,2]
[406724942,1772122243196,-500.0,0.0001289,2]
[406724943,1772122243206,-500.0,0.0001289,2]
[406724944,1772122243218,-500.0,0.0001289,2]
[406724945,1772122243231,-500.0,0.0001289,2]
[406724946,1772122243241,-500.0,0.0001289,2]
[406724947,1772122243251,-500.0,0.0001289,2]
[406724948,1772122243261,-500.0,0.0001289,2]
[406724949,1772122243271,-500.0,0.0001289,2]
[406724951,1772122243281,-500.0,0.0001289,2]
[406724952,1772122243293,-500.0,0.0001289,2]
[406724953,1772122243303,-500.0,0.0001289,2]
[406724954,1772122243312,-500.0,0.0001289,2]
[406724955,1772122243321,-500.0,0.0001289,2]
[406724956,1772122243331,-500.0,0.0001289,2]
[406724957,1772122243340,-500.0,0.0001289,2]
[406724958,1772122243349,-500.0,0.0001289,2]
[406724959,1772122243362,-500.0,0.0001289,2]
[406724960,1772122243374,-500.0,0.0001289,2]
[406724961,1772122243384,-500.0,0.0001289,2]
[406724962,1772122243395,-500.0,0.0001289,2]
[406724963,1772122243405,-500.0,0.0001289,2]
[406724964,1772122243415,-500.0,0.0001289,2]
[406724966,1772122243538,-500.0,0.0001289,2]
[406724967,1772122243548,-500.0,0.0001289,2]
[406724968,1772122243557,-500.0,0.0001289,2]
[406724969,1772122243568,-150.25022043,0.0001289,2]
[406724970,1772122243578,-500.0,0.0001289,2]
[406724971,1772122243587,-500.0,0.0001289,2]
[406724972,1772122243596,-500.0,0.0001289,2]
[406724973,1772122243606,-500.0,0.0001289,2]
[406724974,1772122243616,-500.0,0.0001289,2]
[406724975,1772122243625,-500.0,0.0001289,2]
[406724976,1772122243635,-500.0,0.0001289,2]
[406724977,1772122243644,-502.38608045,0.0001289,2]
[406724978,1772122243653,-500.0,0.0001289,2]
[406724979,1772122243662,-670.0,0.0001289,2]
[406724980,1772122243671,-500.0,0.0001289,2]
[406724981,1772122243681,-500.0,0.0001289,2]
[406724982,1772122243690,-500.0,0.0001289,2]
[406724983,1772122243700,-500.0,0.0001289,2]
[406724984,1772122243709,-500.0,0.0001289,2]
[406724985,1772122243718,-500.0,0.0001289,2]
[406724986,1772122243728,-500.0,0.0001289,2]
[406724987,1772122243738,-500.0,0.0001289,2]
[406724988,1772122243746,-500.0,0.0001289,2]
[406724989,1772122243756,-500.0,0.0001289,2]
[406724990,1772122243766,-500.0,0.0001289,2]
[406724991,1772122243775,-500.0,0.0001289,2]
[406724992,1772122243784,-500.0,0.0001289,2]
[406724993,1772122243794,-500.0,0.0001289,2]
[406724994,1772122243803,-152.0758102,0.0001289,2]
[406724995,1772122243812,-5628.56477834,0.00013,2]
[406724996,1772122243821,-2500.0,0.0001302,2]
[406724997,1772122243830,-4991.64015429,0.00013037,2]
[406724998,1772122243840,-3240.0,0.00013425,2]
[406724999,1772122243850,-6358.0,0.00013567,2]
[406725000,1772122243859,-3000.0,0.00013568,2]
[406725001,1772122243869,-2698.85736045,0.0001358,2]
[406725002,1772122243880,-465.42516497,0.00013598,2]
[406725003,1772122243889,-500.0,0.00013698,2]
[406725004,1772122243900,-500.0,0.00013698,2]
[406725005,1772122243910,-500.0,0.00013698,2]
[406725006,1772122243920,-500.0,0.00013698,2]
[406725007,1772122243930,-500.0,0.00013698,2]
[406725008,1772122243939,-500.0,0.00013698,2]
[406725009,1772122243949,-500.0,0.00013698,2]
[406725010,1772122243962,-500.0,0.00013698,2]
[406725011,1772122243983,-500.0,0.00013698,2]
[406725012,1772122243993,-500.0,0.00013698,2]
[406725013,1772122244003,-500.0,0.00013698,2]
[406725014,1772122244012,-500.0,0.00013698,2]
[406725015,1772122244021,-500.0,0.00013698,2]
[406725016,1772122244031,-405.62075362,0.00013698,2]
[406725017,1772122244041,-500.0,0.00013698,2]
[406725018,1772122244051,-500.0,0.00013698,2]
[406725019,1772122244060,-500.0,0.00013698,2]
[406725020,1772122244070,-500.0,0.00013698,2]
[406725021,1772122244079,-500.0,0.00013698,2]
[406725022,1772122244088,-500.0,0.00013698,2]
[406725023,1772122244097,-500.0,0.00013698,2]
[406725024,1772122244107,-500.0,0.00013698,2]
[406725025,1772122244116,-500.0,0.00013698,2]
[406725026,1772122244126,-500.0,0.00013698,2]
[406725027,1772122244136,-500.0,0.00013698,2]
[406725028,1772122244146,-500.0,0.00013698,2]
[406725029,1772122244156,-500.0,0.00013698,2]
[406725030,1772122244165,-500.0,0.00013698,2]
[406725031,1772122244175,-500.0,0.00013698,2]
[406725032,1772122244184,-500.0,0.00013698,2]
[406725033,1772122244194,-500.0,0.00013698,2]
[406725034,1772122244205,-500.0,0.00013698,2]
[406725035,1772122244217,-500.0,0.00013698,2]
[406725036,1772122244226,-500.0,0.00013698,2]
[406725037,1772122244235,-500.0,0.00013698,2]
[406725038,1772122244245,-500.0,0.00013698,2]
[406725039,1772122244254,-585.34193538,0.00013698,2]
[406725040,1772122244264,-500.0,0.00013698,2]
[406725041,1772122244273,-500.0,0.00013698,2]
[406725042,1772122244285,-500.0,0.00013698,2]
[406725043,1772122244294,-368.2260392,0.00013698,2]
[406725044,1772122244304,-500.0,0.00013698,2]
[406725045,1772122244314,-500.0,0.00013698,2]
[406725046,1772122244323,-500.0,0.00013698,2]
[406725047,1772122244333,-500.0,0.00013698,2]
[406725048,1772122244342,-409.20397161,0.00013698,2]
[406725049,1772122244351,-500.0,0.00013698,2]
[406725050,1772122244361,-500.0,0.00013698,2]
[406725051,1772122244370,-500.0,0.00013698,2]
[406725052,1772122244380,-500.0,0.00013698,2]
[406725053,1772122244390,-500.0,0.00013698,2]
[406725054,1772122244399,-500.0,0.00013698,2]
[406725055,1772122244410,-500.0,0.00013698,2]
[406725056,1772122244419,-500.0,0.00013698,2]
[406725057,1772122244429,-500.0,0.00013698,2]
[406725058,1772122244438,-500.0,0.00013698,2]
[406725059,1772122244448,-500.0,0.00013698,2]
[406725060,1772122244458,-500.0,0.00013698,2]
[406725061,1772122244467,-500.0,0.00013698,2]
[406725062,1772122244478,-500.0,0.00013698,2]
[406725063,1772122244487,-500.0,0.00013698,2]